fUSD/lending_fUSD_20240815
["ID","MTS","AMOUNT","RATE_DAILY","PERIOD"]
[335023873,1723755040499,-2237.48895736,0.00011,2]
[335023874,1723755040510,-2847.440991,0.00011,2]
[335023876,1723755040607,-62844.30890005,0.00011,2]
[335023878,1723755040617,-8221.32474781,0.00011,2]
[335023902,1723755043290,-1449.9999998,0.00011,2]
[335023960,1723755044347,-1775.0,0.00011,2]
[335024010,1723755046382,-994.0,0.00011,2]
[335024011,1723755046391,-4014.17589993,0.00011,2]
[335024012,1723755046600,-439904.3926862,0.00011,2]
[335024013,1723755046610,-136114.53578587,0.00011,2]
[335024131,1723755166137,255.46465444,9.812e-05,2]
[335024132,1723755166160,88.03534556,9.812e-05,2]
[335024133,1723755170349,2351.436,0.0001001,2]
[335024134,1723755200445,709.16,8.219e-05,2]
[335024135,1723755271549,176.73,9.806e-05,2]
[335024136,1723755400869,1000.0,9.801e-05,2]
[335024137,1723755441330,2671.68,9.801e-05,2]
[335024138,1723755485100,4927.66,9.801e-05,2]
[335024141,1723755645980,712.96,8.219e-05,2]
[335024142,1723755647277,150.0,0.00025,60]
[335024143,1723755659826,400.0,9.798e-05,2]
[335024144,1723755688283,171.75,9.797e-05,2]
[335024145,1723755879122,550.0,0.0001,2]
[335024146,1723755909780,200.0,9.776e-05,2]
[335024152,1723755991171,20392.66258053,9.776e-05,2]
[335024153,1723755999742,3070.88521436,9.776e-05,2]
[335024154,1723756009164,693.68338973,9.776e-05,2]
[335024155,1723756012537,1268.93157185,9.776e-05,2]
[335024156,1723756013246,499.97286808,9.776e-05,2]
[335024220,1723756116155,20392.66258053,9.776e-05,2]
[335024221,1723756132934,-215.48,0.00010265,2]
[335024222,1723756132963,-440.37274966,0.00010295,2]
[335024223,1723756132992,-712.96,0.00010465,2]
[335024224,1723756133020,-2614.6178,0.00010566,2]
[335024225,1723756133048,-300.0,0.00010699,2]
[335024226,1723756133077,-300.0,0.00010699,2]
[335024227,1723756133105,-490.12563684,0.00010699,2]
[335024228,1723756133138,-5073.5561865,0.00010699,2]
[335024229,1723756133183,-1422.50707685,0.00010699,2]
[335024230,1723756133211,-3651.04910965,0.000107,2]
[335024231,1723756133255,-372.65639035,0.000107,2]
[335024232,1723756133283,-4700.89979615,0.000107,2]
[335024233,1723756133319,-1804.30520385,0.000107,2]
[335024234,1723756133348,-2500.0,0.000107,2]
[335024235,1723756133376,-155.0,0.00010713,2]
[335024236,1723756133611,-150.0,0.00010731,2]
[335024237,1723756133642,-150.0,0.00010732,2]
[335024238,1723756133672,-314.25098265,0.00010736,2]
[335024239,1723756133710,-1185.74901735,0.00010736,2]
[335024240,1723756133742,-150.0,0.00010745,2]
[335024241,1723756133773,-150.0,0.00010745,2]
[335024242,1723756133803,-150.0,0.00010746,2]
[335024243,1723756133831,-408.2,0.00010746,2]
[335024244,1723756133863,-150.0,0.00010747,2]
[335024245,1723756133894,-150.0,0.00010748,2]
[335024246,1723756133924,-150.0,0.0001075,2]
[335024247,1723756133954,-150.0,0.0001075,2]
[335024248,1723756133987,-150.0,0.00010754,2]
[335024249,1723756134016,-150.0,0.00010756,2]
[335024250,1723756134046,-150.0,0.00010761,2]
[335024251,1723756134077,-150.0,0.00010764,2]
[335024252,1723756134108,-150.0,0.00010766,2]
[335024253,1723756134137,-150.0,0.00010767,2]
[335024254,1723756134166,-150.0,0.00010777,2]
[335024255,1723756134195,-150.0,0.00010779,2]
[335024256,1723756134226,-150.0,0.00010779,2]
[335024257,1723756134256,-150.0,0.0001078,2]
[335024258,1723756134286,-150.0,0.00010781,2]
[335024259,1723756134316,-150.0,0.00010781,2]
[335024260,1723756134347,-300.0,0.00010782,2]
[335024261,1723756134377,-150.0,0.00010784,2]
[335024262,1723756134413,-150.0,0.00010784,2]
[335024263,1723756134443,-29.60716915,0.00010788,2]
[335024264,1723756134481,-270.39283085,0.00010788,2]
[335024265,1723756134512,-150.0,0.00010791,2]
[335024266,1723756134543,-150.0,0.00010795,2]
[335024267,1723756134575,-150.0,0.00010795,2]
[335024268,1723756134607,-150.0,0.00010796,2]
[335024269,1723756134637,-962.69814273,0.00010799,2]
[335024270,1723756134668,-3240.46521292,0.000108,2]
[335024271,1723756134717,-5039.60414088,0.000108,2]
[335024272,1723756144516,200.0,9.776e-05,2]
[335024277,1723756148739,3070.88521436,9.776e-05,2]
[335024278,1723756157929,-1855.79515426,0.00010701,2]
[335024280,1723756163581,5522.54214468,9.776e-05,2]
[335024281,1723756163608,10714.21501169,9.776e-05,2]
[335024284,1723756183795,-3162.35140455,0.00010566,2]
[335024285,1723756205131,20392.66258053,9.776e-05,2]
[335024287,1723756230562,1269.37264104,9.776e-05,2]
[335024308,1723756233219,-5821.82408349,0.00010505,2]
[335024310,1723756233229,-962.69814273,0.00010566,2]
[335024312,1723756233238,-150.0,0.00010799,2]
[335024314,1723756233248,-300.0,0.00010799,2]
[335024316,1723756233258,-263576.38871727,0.000108,2]
[335024318,1723756233269,-535.8515108,0.000108,2]
[335024321,1723756233281,-1000.0,0.000108,2]
[335024325,1723756233311,-2357.89277135,0.000108,2]
[335024327,1723756233323,-669.94125223,0.000108,2]
[335024329,1723756233335,-5371.78642001,0.000108,2]
[335024331,1723756233346,-307.8334,0.000108,2]
[335024333,1723756233358,-2790.63283039,0.000108,2]
[335024335,1723756233384,-1166.56665085,0.000108,2]
[335024337,1723756233396,-600.0,0.000108,2]
[335024338,1723756233407,-571.61940899,0.000108,2]
[335024339,1723756233422,-2066.72018457,0.000108,2]
[335024340,1723756233451,-2584.73800879,0.000108,2]
[335024341,1723756233465,-2743.0,0.000108,2]
[335024342,1723756233478,-11358.99851532,0.000108,2]
[335024343,1723756233508,-2009.39774727,0.000108,2]
[335024353,1723756238609,-968.719089,0.000108,2]
[335024354,1723756238621,-60814.00000001,0.000108,2]
[335024355,1723756238633,-468.50164004,0.000108,2]
[335024356,1723756238667,-311.21120683,0.000108,2]
[335024357,1723756238722,-319.8,0.000108,2]
[335024358,1723756238734,-668.26362144,0.000108,2]
[335024359,1723756238747,-5660.0,0.000108,2]
[335024360,1723756238760,-7991.34343518,0.000108,2]
[335024361,1723756238772,-11989.23700844,0.000108,2]
[335024362,1723756238781,-150.0,0.00010801,2]
[335024363,1723756238790,-150.0,0.00010802,2]
[335024364,1723756238800,-150.0,0.00010802,2]
[335024365,1723756238811,-1500.0,0.00010802,2]
[335024366,1723756238820,-150.0,0.00010812,2]
[335024367,1723756238831,-150.0,0.00010822,2]
[335024368,1723756238840,-150.0,0.00010824,2]
[335024369,1723756238850,-150.0,0.00010824,2]
[335024370,1723756238861,-150.0,0.0001083,2]
[335024371,1723756238871,-150.0,0.0001083,2]
[335024372,1723756238881,-1500.0,0.00010831,2]
[335024373,1723756238891,-150.0,0.00010835,2]
[335024374,1723756238903,-150.0,0.00010836,2]
[335024375,1723756238913,-150.0,0.00010839,2]
[335024376,1723756238923,-150.0,0.00010842,2]
[335024377,1723756238934,-150.0,0.00010845,2]
[335024378,1723756238944,-150.0,0.00010847,2]
[335024379,1723756238954,-150.0,0.00010847,2]
[335024380,1723756238964,-150.0,0.00010847,2]
[335024381,1723756238974,-150.0,0.00010858,2]
[335024382,1723756238984,-150.0,0.00010859,2]
[335024383,1723756238994,-150.0,0.0001086,2]
[335024384,1723756239004,-150.0,0.0001086,2]
[335024385,1723756239013,-150.0,0.00010861,2]
[335024386,1723756239023,-150.0,0.00010862,2]
[335024387,1723756239032,-150.0,0.00010867,2]
[335024388,1723756239041,-150.0,0.00010868,2]
[335024389,1723756239051,-150.0,0.00010873,2]
[335024390,1723756239060,-150.0,0.00010877,2]
[335024391,1723756239069,-150.0,0.00010877,2]
[335024393,1723756239079,-150.0,0.00010878,2]
[335024395,1723756239088,-150.0,0.00010878,2]
[335024397,1723756239097,-150.0,0.00010881,2]
[335024399,1723756239107,-1500.0,0.00010884,2]
[335024401,1723756239116,-155.0,0.00010888,2]
[335024403,1723756239129,-150.0,0.00010888,2]
[335024405,1723756239139,-150.0,0.00010891,2]
[335024406,1723756239148,-1500.0,0.00010895,2]
[335024407,1723756239157,-150.0,0.00010896,2]
[335024408,1723756239169,-1500.0,0.00010897,2]
[335024409,1723756239179,-150.0,0.00010898,2]
[335024410,1723756239190,-311.70176025,0.00010899,2]
[335024411,1723756239200,-311.70176025,0.00010899,2]
[335024412,1723756239210,-311.70176025,0.00010899,2]
[335024413,1723756239219,-311.70176025,0.00010899,2]
[335024414,1723756239229,-311.70176025,0.00010899,2]
[335024415,1723756239240,-311.70176025,0.00010899,2]
[335024416,1723756239250,-311.70176025,0.00010899,2]
[335024417,1723756239260,-311.70176025,0.00010899,2]
[335024418,1723756239270,-311.70176025,0.00010899,2]
[335024419,1723756239281,-155.0,0.00010899,2]
[335024420,1723756239291,-155.0,0.00010899,2]
[335024421,1723756239301,-2324.21109593,0.000109,2]
[335024422,1723756239312,-1877.94324066,0.000109,2]
[335024423,1723756239326,-1122.05675934,0.000109,2]
[335024424,1723756239335,-726.96087011,0.000109,2]
[335024425,1723756239347,-17546.65222989,0.000109,2]
[335024426,1723756239357,-303.8659,0.000109,2]
[335024427,1723756239367,-501.43999148,0.000109,2]
[335024428,1723756239376,-311.70176025,0.000109,2]
[335024429,1723756239386,-5129.17085771,0.000109,2]
[335024430,1723756239396,-201.78608961,0.000109,2]
[335024431,1723756239406,-150.0,0.00010906,2]
[335024432,1723756239416,-150.0,0.00010918,2]
[335024433,1723756239430,-150.0,0.00010921,2]
[335024434,1723756239440,-150.0,0.00010923,2]
[335024435,1723756239449,-150.0,0.00010923,2]
[335024436,1723756239459,-150.0,0.00010924,2]
[335024437,1723756239469,-150.0,0.00010925,2]
[335024438,1723756239479,-150.0,0.00010927,2]
[335024439,1723756239488,-150.0,0.0001093,2]
[335024440,1723756239498,-150.0,0.00010939,2]
[335024441,1723756239509,-2736.15318,0.0001094,2]
[335024442,1723756239519,-150.0,0.00010943,2]
[335024443,1723756239529,-150.0,0.00010943,2]
[335024444,1723756239539,-155.0,0.00010949,2]
[335024445,1723756239549,-155.0,0.00010949,2]
[335024446,1723756239559,-150.0,0.0001095,2]
[335024447,1723756239572,-150.0,0.00010952,2]
[335024449,1723756239582,-150.0,0.00010954,2]
[335024450,1723756239591,-150.0,0.00010954,2]
[335024451,1723756239601,-150.0,0.00010959,2]
[335024452,1723756239611,-250.0,0.00010959,2]
[335024453,1723756239620,-464.05,0.00010959,2]
[335024454,1723756239630,-356.68,0.00010959,2]
[335024455,1723756239640,-150.0,0.00010959,2]
[335024456,1723756239650,-150.0,0.0001096,2]
[335024457,1723756239659,-233.83150846,0.00010961,2]
[335024458,1723756239669,-150.0,0.00010965,2]
[335024459,1723756239679,-150.0,0.00010969,2]
[335024460,1723756239688,-150.0,0.00010971,2]
[335024461,1723756239699,-150.0,0.00010976,2]
[335024462,1723756239708,-150.0,0.00010977,2]
[335024463,1723756239718,-415.01059966,0.00010979,2]
[335024464,1723756239728,-150.0,0.00010983,2]
[335024465,1723756239738,-1006.0,0.00010986,2]
[335024466,1723756239747,-150.0,0.00010988,2]
[335024467,1723756239757,-150.0,0.00010989,2]
[335024468,1723756239767,-150.0,0.00010991,2]
[335024469,1723756239777,-150.0,0.00010992,2]
[335024470,1723756239787,-150.0,0.00010992,2]
[335024471,1723756239799,-150.0,0.00010994,2]
[335024472,1723756239810,-500.0,0.00010997,2]
[335024473,1723756239819,-500.0,0.00010997,2]
[335024474,1723756239829,-500.0,0.00010997,2]
[335024475,1723756239839,-500.0,0.00010997,2]
[335024476,1723756239849,-500.0,0.00010997,2]
[335024477,1723756239859,-500.0,0.00010997,2]
[335024478,1723756239869,-500.0,0.00010997,2]
[335024479,1723756239878,-500.0,0.00010997,2]
[335024480,1723756239887,-500.0,0.00010997,2]
[335024481,1723756239897,-500.0,0.00010997,2]
[335024482,1723756239906,-500.0,0.00010997,2]
[335024483,1723756239915,-500.0,0.00010997,2]
[335024484,1723756239925,-532.76759087,0.00010997,2]
[335024485,1723756239934,-500.0,0.00010997,2]
[335024486,1723756239943,-500.0,0.00010997,2]
[335024487,1723756239952,-500.0,0.00010997,2]
[335024488,1723756239961,-500.0,0.00010997,2]
[335024489,1723756239970,-500.0,0.00010997,2]
[335024490,1723756239980,-500.0,0.00010997,2]
[335024491,1723756239999,-500.0,0.00010997,2]
[335024492,1723756240008,-500.0,0.00010997,2]
[335024493,1723756240018,-500.0,0.00010997,2]
[335024494,1723756240028,-500.0,0.00010997,2]
[335024495,1723756240041,-10143.95469867,0.00010997,2]
[335024496,1723756240051,-200.0,0.00010998,2]
[335024497,1723756240060,-1803.63320981,0.00010998,2]
[335024498,1723756240079,-4070.08297907,0.00010998,2]
[335024499,1723756240090,-56499.99999999,0.00010998,2]
[335024500,1723756240128,-71049.35863103,0.00010998,2]
[335024502,1723756240137,-150.01,0.00010999,2]
[335024503,1723756240147,-500.0,0.00010999,2]
[335024504,1723756240157,-150.72862721,0.00010999,2]
[335024505,1723756240166,-1223.0,0.00011,2]
[335024506,1723756240176,-232905.74151768,0.00011,2]
[335024507,1723756240187,-616.91986987,0.00011,2]
[335024509,1723756240198,-5647.93868669,0.00011,2]
[335024510,1723756240209,-13046.59617404,0.00011,2]
[335024511,1723756240221,-795.0000001,0.00011,2]
[335024525,1723756240476,-28471.5,0.00011,2]
[335024526,1723756240488,-16107.31564882,0.00011,2]
[335024527,1723756240545,-268.21743374,0.00011,2]
[335024528,1723756240556,-1311.55918558,0.00011,2]
[335024529,1723756240567,-2419.74,0.00011,2]
[335024530,1723756240585,-607.5499219,0.00011,2]
[335024531,1723756240597,-10488.00224925,0.00011,2]
[335024532,1723756240606,-4752.96097623,0.00011,2]
[335024533,1723756240643,-5686.818008,0.00011,2]
[335024534,1723756240702,-1200638.88243015,0.00011,2]
[335024535,1723756240712,-2098052.4823731,0.00011,2]
[335024536,1723756240722,-1917430.22264199,0.00011,2]
[335024537,1723756240731,-118014.40842232,0.00011,2]
[335024538,1723756240740,-11398219.75601314,0.00011,2]
[335024539,1723756240752,-11181.032,0.00011,2]
[335024540,1723756240763,-56561.77338996,0.00011,2]
[335024541,1723756240814,-500.54994624,0.00011,2]
[335024543,1723756240825,-12002.73286633,0.00011,2]
[335024574,1723756244392,-832.28687525,0.00011,2]
[335024575,1723756244404,-555.06650791,0.00011,2]
[335024576,1723756244452,-17072.074329,0.00011,2]
[335024577,1723756244481,-2280.27307126,0.00011,2]
[335024578,1723756244491,-636.82035561,0.00011,2]
[335024579,1723756244503,-5066.20000016,0.00011,2]
[335024580,1723756244515,-569.5,0.00011,2]
[335024589,1723756246662,-1695.6205549,0.00011,2]
[335024597,1723756247364,-253.52,0.00011,2]
[335024598,1723756247384,-8475.0,0.00011,2]
[335024599,1723756247395,-14535.0,0.00011,2]
[335024600,1723756247407,-28266.95,0.00011,2]
[335024601,1723756247432,-2117.36885741,0.00011,2]
[335024602,1723756248750,3071.43156646,9.776e-05,2]
[335024603,1723756255386,16239.2033906,9.776e-05,2]
[335024604,1723756279614,682.59,8.219e-05,2]
[335024605,1723756300328,171.75,9.976e-05,2]
[335024606,1723756311672,20396.1727788,9.776e-05,2]
[335024607,1723756321627,-297.90978804,9.993e-05,2]
[335024608,1723756343658,1269.37264104,9.776e-05,2]
[335024609,1723756353399,16234.31092214,9.776e-05,2]
[335024610,1723756357255,3070.33886226,9.776e-05,2]
[335024611,1723756369317,170.82,9.959e-05,2]
[335024612,1723756388439,542.36,9.938e-05,2]
[335024613,1723756433629,1269.37264104,9.959e-05,2]
[335024614,1723756434924,23880.0,9.936e-05,2]
[335024615,1723756455762,3070.88521436,9.959e-05,2]
[335024616,1723756473401,16236.75715637,9.938e-05,2]
[335024617,1723756487650,880.0,9.932e-05,2]
[335024618,1723756498816,250.0,9.975e-05,2]
[335024619,1723756506576,1267.60836428,9.938e-05,2]
[335024620,1723756520696,20389.15238226,9.938e-05,2]
[335024622,1723756609209,181.79,7.937e-05,2]
[335024623,1723756695311,200.0,9.945e-05,2]
[335024624,1723756743738,687.34,8.219e-05,2]
[335024625,1723756852182,229.04,8.219e-05,2]
[335024626,1723756915424,6849.30275582,9.962e-05,2]
[335024627,1723756945137,19732.28203361,9.962e-05,2]
[335024628,1723757003371,296.0,9.858e-05,2]
[335024629,1723757106096,181.79,7.81e-05,2]
[335024630,1723757120260,7588.87744833,9e-05,2]
[335024631,1723757156163,5881.25464484,6.94e-05,2]
[335024633,1723757162926,155.0,9.943e-05,2]
[335024634,1723757177347,200.0,9.764e-05,2]
[335024636,1723757217094,150.0,9.888e-05,2]
[335024658,1723757350228,689.91,8.219e-05,2]
[335024668,1723757384123,-65.09021196,9.993e-05,2]
[335024669,1723757384154,-4888.73040659,9.999e-05,2]
[335024670,1723757384209,-933.0936769,9.999e-05,2]
[335024671,1723757384238,-4020.72694165,0.0001,2]
[335024672,1723757384291,-2135.03553897,0.0001,2]
[335024673,1723757384321,-251.74093732,0.00010026,2]
[335024674,1723757384352,-244.99722967,0.000101,2]
[335024675,1723757384381,-150.0,0.00010162,2]
[335024676,1723757384410,-178.34,0.00010273,2]
[335024677,1723757384440,-150.0,0.00010437,2]
[335024678,1723757384471,-689.91,0.00010462,2]
[335024679,1723757384500,-962.69814273,0.00010471,2]
[335024680,1723757384754,-191.09876986,0.000105,2]
[335024681,1723757384797,-3439.46582705,0.000105,2]
[335024682,1723757384832,-150.0,0.00010504,2]
[335024683,1723757384867,-499.99,0.00010504,2]
[335024684,1723757384898,-864.3647915,0.00010504,2]
[335024685,1723757384934,-287.2652085,0.00010504,2]
[335024686,1723757384964,-2824.68608469,0.0001059,2]
[335024687,1723757384994,-1841.86932536,0.000106,2]
[335024688,1723757385037,-4953.82061855,0.000106,2]
[335024689,1723757385076,-4953.82061855,0.000106,2]
[335024690,1723757403689,19732.28203361,9.962e-05,2]
[335024691,1723757421561,962.69814273,9.962e-05,2]
[335024692,1723757422317,3033.1703475,9.962e-05,2]
[335024694,1723757431881,-155.0,0.00010009,2]
[335024695,1723757431890,-150.0,0.00010599,2]
[335024696,1723757431900,-2567.58980355,0.000106,2]
[335024697,1723757431914,-994.87575444,0.000106,2]
[335024698,1723757431927,-30517.62137955,0.000106,2]
[335024699,1723757431936,-449.5209,0.000106,2]
[335024700,1723757431950,-4301.345,0.000106,2]
[335024701,1723757431964,-442.3726,0.000106,2]
[335024702,1723757431979,-150.0,0.000106,2]
[335024703,1723757431993,-300.0,0.00010692,2]
[335024704,1723757432005,-13335.51811461,0.000107,2]
[335024705,1723757432037,-865.31617129,0.000107,2]
[335024706,1723757432053,-502.90722895,0.000107,2]
[335024707,1723757432069,-635.4428518,0.000107,2]
[335024708,1723757432085,-8311.72992793,0.000107,2]
[335024709,1723757432100,-567.14,0.000107,2]
[335024710,1723757432115,-541.0092199,0.000107,2]
[335024711,1723757432143,-1988.82018552,0.000107,2]
[335024712,1723757432155,-4913.7551,0.000107,2]
[335024713,1723757432167,-20737.09602298,0.000107,2]
[335024716,1723757432182,-7729.42497305,0.000107,2]
[335024718,1723757432196,-684.71908266,0.000107,2]
[335024721,1723757432212,-570.60691558,0.000107,2]
[335024723,1723757432227,-67911.99610573,0.000107,2]
[335024725,1723757432241,-1000.0,0.000107,2]
[335024726,1723757432251,-635.97,0.000107,2]
[335024727,1723757432262,-150.0,0.000107,2]
[335024728,1723757432275,-528.19,0.000107,2]
[335024729,1723757432287,-150.0,0.000107,2]
[335024730,1723757432299,-1000.0,0.000107,2]
[335024731,1723757432311,-150.0,0.00010712,2]
[335024732,1723757432324,-150.0,0.0001073,2]
[335024733,1723757432336,-150.0,0.00010739,2]
[335024734,1723757432349,-150.0,0.00010739,2]
[335024735,1723757432361,-150.0,0.00010757,2]
[335024736,1723757432374,-150.0,0.00010761,2]
[335024737,1723757432387,-150.0,0.00010762,2]
[335024738,1723757432398,-299.99,0.0001077,2]
[335024739,1723757432409,-150.0,0.00010772,2]
[335024740,1723757432419,-904.178336,0.0001078,2]
[335024741,1723757432430,-150.0,0.00010788,2]
[335024742,1723757432442,-165.55542289,0.00010793,2]
[335024743,1723757432455,-150.0,0.00010798,2]
[335024744,1723757432467,-300.0,0.000108,2]
[335024745,1723757432480,-150.0,0.000108,2]
[335024746,1723757432490,-150.0,0.00010802,2]
[335024747,1723757432503,-150.0,0.00010812,2]
[335024748,1723757432515,-150.0,0.00010816,2]
[335024749,1723757432527,-150.0,0.0001082,2]
[335024750,1723757432540,-150.0,0.00010833,2]
[335024751,1723757432551,-150.0,0.00010834,2]
[335024752,1723757432562,-150.0,0.00010835,2]
[335024753,1723757432572,-150.0,0.00010839,2]
[335024754,1723757432583,-150.0,0.00010844,2]
[335024755,1723757432593,-1412.75,0.00010849,14]
[335024756,1723757432607,-150.0,0.00010861,2]
[335024757,1723757432619,-155.0,0.00010862,2]
[335024758,1723757432630,-150.0,0.00010864,2]
[335024759,1723757432641,-150.0,0.00010865,2]
[335024760,1723757432653,-150.0,0.00010868,2]
[335024761,1723757432665,-150.0,0.00010868,2]
[335024762,1723757432677,-150.0,0.0001087,2]
[335024763,1723757432689,-150.0,0.0001087,2]
[335024764,1723757432701,-150.0,0.00010872,2]
[335024765,1723757432712,-150.0,0.00010874,2]
[335024766,1723757432724,-150.0,0.00010877,2]
[335024767,1723757432736,-229.32323,0.0001089,2]
[335024768,1723757432748,-7500.0,0.0001089,2]
[335024769,1723757432763,-150.0,0.00010893,2]
[335024770,1723757432775,-150.0,0.00010893,2]
[335024771,1723757432791,-164.28740423,0.00010899,2]
[335024772,1723757432802,-164.28740423,0.00010899,2]
[335024773,1723757432815,-164.28740423,0.00010899,2]
[335024774,1723757432828,-164.28740423,0.00010899,2]
[335024775,1723757432839,-948.65206145,0.00010899,2]
[335024776,1723757432851,-3000.0,0.000109,2]
[335024777,1723757432864,-250.71999573,0.000109,2]
[335024778,1723757432881,-300.58,0.000109,2]
[335024779,1723757432893,-150.0,0.000109,2]
[335024780,1723757432904,-529.32,0.000109,2]
[335024781,1723757432916,-164.28740423,0.000109,2]
[335024782,1723757432929,-162.32777207,0.000109,2]
[335024783,1723757432941,-20808.05893497,0.000109,2]
[335024784,1723757432952,-574.5748924,0.000109,2]
[335024785,1723757432964,-150.0,0.00010917,2]
[335024786,1723757432976,-150.0,0.0001092,2]
[335024787,1723757432988,-150.0,0.00010927,2]
[335024788,1723757432999,-150.0,0.00010928,2]
[335024789,1723757433012,-150.0,0.00010928,2]
[335024790,1723757433024,-150.0,0.0001093,2]
[335024791,1723757433037,-150.0,0.00010933,2]
[335024792,1723757433048,-150.0,0.00010934,2]
[335024793,1723757433060,-150.0,0.00010937,2]
[335024794,1723757433072,-150.0,0.00010946,2]
[335024795,1723757433084,-150.0,0.00010953,2]
[335024796,1723757433095,-150.0,0.00010959,2]
[335024797,1723757433106,-250.0,0.00010959,2]
[335024798,1723757433119,-150.0,0.00010959,2]
[335024799,1723757433130,-150.0,0.00010962,2]
[335024800,1723757433142,-150.0,0.00010968,2]
[335024801,1723757433154,-14459.25142595,0.0001098,2]
[335024802,1723757433166,-150.0,0.00010981,2]
[335024803,1723757433177,-150.71639531,0.00010986,2]
[335024804,1723757433189,-112511.2958692,0.0001099,3]
[335024805,1723757433201,-150.0,0.00010994,2]
[335024806,1723757433212,-215.29269057,0.00010997,2]
[335024807,1723757433224,-215.29269057,0.00010997,2]
[335024808,1723757433235,-3366.19543723,0.00010998,2]
[335024809,1723757433260,-2538.47731458,0.00010998,2]
[335024810,1723757433273,-270.03107511,0.00010998,2]
[335024811,1723757433286,-450.50241639,0.00010998,2]
[335024812,1723757433300,-635.97483763,0.00010998,2]
[335024813,1723757433314,-530.0,0.00010998,2]
[335024814,1723757433328,-438.97877864,0.00010998,2]
[335024816,1723757437755,-620.0,0.00010998,2]
[335024817,1723757437768,-193.62497822,0.00010998,2]
[335024818,1723757437777,-369.68829086,0.00010998,2]
[335024819,1723757437793,-810.95000243,0.00010998,2]
[335024820,1723757437815,-155.0,9.999e-05,2]
[335024821,1723757437826,-822.13534761,0.00010998,2]
[335024822,1723757437836,-543.26356432,0.00010998,2]
[335024823,1723757437847,-7293.58596012,0.00010998,2]
[335024824,1723757437858,-14870.92097106,0.00010998,2]
[335024825,1723757437870,-1114.47748706,0.00010998,2]
[335024826,1723757437881,-5889.5837,0.00010998,2]
[335024827,1723757437920,-82583.18741564,0.00010998,2]
[335024828,1723757437930,-218.40329671,0.00010999,2]
[335024829,1723757437941,-1733.9147795,0.00010999,2]
[335024830,1723757437952,-500.0,0.00010999,2]
[335024831,1723757437961,-500.0,0.00010999,2]
[335024832,1723757437970,-500.0,0.00010999,2]
[335024833,1723757437979,-580.65483022,0.00010999,2]
[335024834,1723757437989,-500.0,0.00010999,2]
[335024835,1723757437998,-500.0,0.00010999,2]
[335024836,1723757438007,-500.0,0.00010999,2]
[335024837,1723757438016,-500.0,0.00010999,2]
[335024838,1723757438025,-500.0,0.00010999,2]
[335024839,1723757438034,-500.0,0.00010999,2]
[335024840,1723757438043,-500.0,0.00010999,2]
[335024841,1723757438052,-500.0,0.00010999,2]
[335024842,1723757438061,-500.0,0.00010999,2]
[335024843,1723757438070,-500.0,0.00010999,2]
[335024844,1723757438079,-500.0,0.00010999,2]
[335024846,1723757438088,-500.0,0.00010999,2]
[335024848,1723757438097,-500.0,0.00010999,2]
[335024850,1723757438106,-521.74728785,0.00010999,2]
[335024851,1723757438115,-500.0,0.00010999,2]
[335024853,1723757438125,-500.0,0.00010999,2]
[335024855,1723757438134,-500.0,0.00010999,2]
[335024857,1723757438143,-500.0,0.00010999,2]
[335024859,1723757438151,-500.0,0.00010999,2]
[335024861,1723757438161,-500.0,0.00010999,2]
[335024863,1723757438170,-500.0,0.00010999,2]